bitfinex/quotes_ETHUSD_20250725
["timestamp","ask_amount","ask_price","bid_price","bid_amount"]
[1753407386299,0.002,3683.6,3683.5,7.83072498]
[1753407388193,0.002,3683.6,3683.5,5.1159157]
[1753407388391,0.002,3683.6,3683.5,4.685]
[1753407388902,0.002,3683.6,3683.3,3.0]
[1753407389072,0.002,3683.6,3683.1,0.7639]
[1753407389273,0.002,3683.6,3683.2,4.643]
[1753407389473,0.002,3683.6,3683.3,4.642]
[1753407390209,0.002,3683.6,3683.4,0.489]
[1753407390512,1.2543,3684.5,3683.3,5.37770943]
[1753407390700,0.4532,3684.4,3683.3,4.642]
[1753407390873,0.8011,3684.5,3683.3,5.0763]
[1753407391069,0.8011,3684.5,3683.4,0.46144882]
[1753407391273,2.71423162,3684.3,3683.4,0.4343]
[1753407391475,2.71429782,3684.2,3683.4,0.4343]
[1753407391670,1.2543,3684.5,3683.3,4.642]
[1753407391875,2.71436303,3684.2,3683.3,4.642]
[1753407392103,2.714377,3684.1,3683.3,4.642]
[1753407392402,2.71423838,3684.3,3683.3,4.642]
[1753407392701,2.71442905,3684.1,3683.3,4.642]
[1753407393108,2.05219634,3684.2,3683.4,0.8198]
[1753407393315,2.71424016,3684.3,3683.4,3.53467641]
[1753407393476,2.71415261,3684.4,3683.5,2.71479411]
[1753407393808,2.71415261,3684.4,3683.4,0.8198]
[1753407393809,0.8011,3684.5,3683.6,2.74181683]
[1753407394013,0.8011,3684.5,3684.1,0.136]
[1753407394532,0.136,3684.7,3684.2,2.71422334]
[1753407394822,0.8055,3684.9,3684.4,0.136]
[1753407395005,0.8055,3684.9,3684.8,0.136]
[1753407395221,3.51927785,3684.9,3684.8,0.136]
[1753407395528,1.6886,3684.9,3684.6,0.136]
[1753407395712,2.71392514,3684.7,3684.6,0.136]
[1753407395875,2.71410125,3684.5,3684.3,0.136]
[1753407396083,0.8055,3684.9,3683.9,0.489]
[1753407396319,2.71392688,3684.7,3684.3,0.136]
[1753407396483,2.71402017,3684.6,3684.3,0.136]
[1753407396678,2.71403192,3684.6,3684.3,0.136]
[1753407396898,2.71403192,3684.6,3683.7,0.4343]
[1753407396899,0.8055,3684.9,3684.5,0.136]
[1753407397328,3.51928246,3684.9,3684.4,0.136]
[1753407397498,1.8246,3684.9,3684.4,0.136]
[1753407397699,1.3714,3684.9,3684.4,0.136]
[1753407398020,0.002,3685.0,3684.5,3.66451082]
[1753407398358,0.002,3685.0,3684.7,2.71392514]
[1753407398494,0.002,3685.0,3684.9,2.71377785]
[1753407398906,0.002,3685.0,3684.9,3.20277785]
[1753407399108,0.002,3685.0,3684.9,0.4343]
[1753407399337,0.002,3685.0,3684.6,0.44368108]
[1753407399569,0.002,3685.0,3684.7,3.0]
[1753407399828,0.002,3685.0,3684.7,3.63720346]
[1753407400033,0.002,3685.0,3684.5,3.0]
[1753407400235,0.002,3685.0,3684.5,3.9233]
[1753407400398,0.002,3685.0,3684.6,0.9233]
[1753407400599,0.002,3685.0,3684.7,2.71390943]
[1753407400799,0.002,3685.0,3684.5,3.0]
[1753407401195,0.002,3685.0,3684.6,4.624]
[1753407401438,0.002,3685.0,3684.3,0.02714219]
[1753407401745,2.71572334,3685.0,3684.5,4.621]
[1753407401947,0.002,3685.0,3684.5,4.625]
[1753407402129,0.002,3685.0,3684.5,5.0593]
[1753407402311,0.002,3685.0,3684.5,7.33904834]
[1753407402526,0.002,3685.0,3684.6,0.4343]
[1753407402699,0.002,3685.0,3684.9,0.7879]
[1753407403032,0.002,3685.0,3684.9,16.12438349]
[1753407403330,0.7727,3686.8,3685.8,2.71310986]
[1753407403521,0.7727,3686.8,3686.1,2.71288782]
[1753407403830,0.7727,3686.8,3685.9,8.56520667]
[1753407404031,0.7727,3686.8,3686.3,2.71271683]
[1753407404232,0.7227,3686.8,3686.2,2.7128059]
[1753407404440,0.8831,3687.5,3686.2,2.73994735]
[1753407404642,3.59496719,3687.5,3686.4,2.71267361]
[1753407404825,0.4532,3687.5,3686.3,3.14701647]
[1753407405008,3.16508177,3687.5,3686.4,7.33767279]
[1753407405215,2.71174104,3687.7,3686.4,4.625]
[1753407405411,2.71120572,3688.4,3687.7,0.7549]
[1753407405743,2.71120268,3688.4,3687.4,4.638]
[1753407406045,0.4391,3688.5,3686.9,0.7692]
[1753407406250,0.15114021,3689.2,3686.9,0.54092]
[1753407406432,0.9249,3689.1,3687.3,2.71195475]
[1753407406610,0.9249,3689.1,3687.5,3.0]
[1753407406818,2.71116297,3688.5,3687.4,5.11]
[1753407407036,2.71135641,3688.2,3687.4,5.11]
[1753407407347,2.71121977,3688.4,3686.4,7.01230564]
[1753407407348,0.4858,3688.3,3686.7,1.7445]
[1753407407520,0.002,3687.3,3687.2,3.0]
[1753407407710,0.002,3687.3,3687.2,3.96962085]
[1753407407912,0.002,3687.3,3687.2,7.81648385]
[1753407408247,0.4858,3689.6,3688.2,0.8277]
[1753407408447,2.71091395,3688.8,3688.2,0.8277]
[1753407408621,0.8192,3689.5,3688.7,0.1352]
[1753407408622,2.71085493,3688.9,3688.7,0.1352]
[1753407408831,2.7108897,3688.9,3688.7,0.1352]
[1753407409025,2.71090869,3688.8,3688.7,0.1352]
[1753407409349,0.1352,3689.2,3688.7,0.1352]
[1753407409549,2.7108715,3688.9,3688.7,0.1352]
[1753407409752,0.621,3689.2,3688.7,0.1352]
[1753407409753,2.71090869,3688.8,3688.7,0.1352]
[1753407409918,0.4858,3688.8,3688.1,4.676]
[1753407410244,0.4391,3689.2,3688.1,4.676]
[1753407410245,2.71106884,3688.6,3688.1,4.676]
[1753407410447,2.71098392,3688.7,3688.6,0.1352]
[1753407410647,0.1352,3689.1,3688.5,0.1352]
[1753407410950,3.19648429,3689.2,3688.5,0.1352]
[1753407411250,2.71018514,3689.8,3689.0,0.1352]
[1753407411549,2.71018514,3689.8,3688.1,4.676]
[1753407411550,0.9249,3689.7,3687.6,3.0]
[1753407411749,2.71083616,3688.9,3688.2,0.8104]
[1753407411921,2.71083616,3688.9,3688.2,5.4804]
[1753407412263,2.71076899,3689.0,3688.2,5.4804]
[1753407412467,2.71083675,3688.9,3688.2,5.4804]
[1753407412616,2.7111374,3688.5,3688.2,4.67]
[1753407412816,2.71087642,3688.9,3688.2,4.67]
[1753407413016,0.795,3689.2,3688.2,4.67]
[1753407413355,2.71098776,3688.7,3688.2,4.67]
[1753407413557,2.71101995,3688.7,3687.9,2.71155433]
[1753407413865,0.795,3689.2,3688.0,0.96961496]
[1753407414035,2.7097404,3690.4,3688.0,0.96961496]
[1753407414036,1.2499,3689.7,3688.0,0.96961496]
[1753407414367,2.710479,3689.4,3688.2,3.0]
[1753407414522,1.689,3689.7,3688.1,5.9718]
[1753407414857,0.9249,3689.6,3688.2,4.665]
[1753407415062,0.9249,3689.5,3688.2,4.665]
[1753407415260,2.71086516,3688.9,3688.3,0.02711276]
[1753407415423,2.71094266,3688.8,3688.2,4.665]
[1753407415764,2.71101463,3688.7,3688.2,4.665]
[1753407416061,2.71127619,3688.3,3688.2,4.662]
[1753407416257,1.3008,3688.7,3687.9,7.057]
[1753407416466,2.71130137,3688.3,3688.0,4.663]
[1753407416756,2.71146774,3688.1,3688.0,4.662]
[1753407416961,2.71135651,3688.2,3688.0,4.662]
[1753407417149,2.71142322,3688.1,3688.0,4.662]
[1753407417460,2.71142322,3688.1,3686.8,2.71230608]
[1753407417461,2.71175255,3687.7,3687.4,4.66]
[1753407417769,0.814,3687.9,3686.8,1.251]
[1753407417936,2.7122376,3687.0,3686.4,0.797]
[1753407418137,0.4858,3687.5,3686.4,0.797]
[1753407418366,2.71239567,3686.8,3686.4,0.797]
[1753407418581,2.71193795,3687.4,3686.3,0.454]
[1753407418739,2.71266001,3686.5,3686.2,4.658]
[1753407418941,1.6895,3686.4,3684.9,0.9425]
[1753407419232,2.71340967,3685.4,3685.3,0.001]
[1753407419849,3.96380967,3685.4,3685.3,0.001]
[1753407420267,8.62680967,3685.4,3685.3,0.001]
[1753407420944,9.06590967,3685.4,3685.3,0.001]
[1753407421382,9.20190967,3685.4,3685.3,0.001]
[1753407421682,0.8252,3684.3,3683.8,0.136]
[1753407421898,0.8252,3684.3,3683.5,0.4885]
[1753407421899,2.7145818,3683.9,3683.6,0.136]
[1753407422180,2.71436714,3684.1,3683.6,0.136]
[1753407422181,2.85036714,3684.1,3683.8,0.001]
[1753407422481,2.7145145,3683.9,3683.8,0.001]
[1753407423845,3.6394145,3683.9,3683.8,0.001]
[1753407424067,0.6218,3683.9,3683.8,0.001]
[1753407424273,7.8543145,3683.9,3683.8,0.001]
[1753407424472,3.2003145,3683.9,3683.8,0.001]
[1753407424940,7.3665145,3683.9,3683.8,0.001]
[1753407425182,7.3645145,3683.9,3683.8,0.001]
[1753407425693,7.3625145,3683.9,3683.8,0.001]
[1753407425883,7.8483145,3683.9,3683.8,0.001]
[1753407426460,8.2874145,3683.9,3683.8,0.001]
[1753407427056,9.0972145,3683.9,3683.8,0.001]
[1753407427397,3.5298304,3683.2,3683.1,0.001]
[1753407427557,8.3098304,3683.2,3683.1,0.001]
[1753407427750,9.2347304,3683.2,3683.1,0.001]
[1753407428084,2.71569399,3682.3,3682.2,0.136]
[1753407428391,2.71537984,3682.8,3682.2,0.136]
[1753407428589,7.35640777,3682.7,3681.9,2.71593632]
[1753407428890,4.639,3682.6,3681.7,3.20461036]
[1753407429057,0.4391,3683.0,3681.7,0.44512104]
[1753407429257,1.2823,3683.6,3681.8,0.96966062]
[1753407429457,2.7148975,3683.4,3682.6,2.71542132]
[1753407429680,2.7148975,3683.4,3682.5,2.71554272]
[1753407429681,2.71490177,3683.4,3682.5,2.71554272]
[1753407429957,2.71505234,3683.2,3682.2,0.9425]
[1753407430165,0.4858,3683.2,3681.8,0.4885]
[1753407430369,4.641,3683.1,3681.9,0.32046537]
[1753407430595,2.71523483,3683.0,3682.2,2.71575458]
[1753407430794,7.35611479,3683.1,3682.1,2.7158247]
[1753407431090,2.71536914,3682.8,3682.0,2.71588962]
[1753407431288,2.71536914,3682.8,3682.0,2.71588824]
[1753407431491,2.71536914,3682.8,3681.9,3.0]
[1753407431669,2.71541134,3682.7,3681.8,3.6585588]
[1753407431869,4.636,3682.6,3681.9,2.71593238]
[1753407432078,4.636,3682.6,3681.9,2.71598902]
[1753407432386,4.636,3682.6,3682.0,2.71589093]
[1753407432586,4.636,3682.6,3681.9,2.71594366]
[1753407432766,0.4858,3683.5,3682.1,2.7158415]
[1753407432968,7.34393318,3683.4,3682.7,2.71536354]
[1753407433166,0.7965,3683.6,3682.4,0.7999]
[1753407433368,4.63,3683.6,3683.3,2.71494471]
[1753407433757,0.7983,3684.0,3683.3,2.71494471]
[1753407433959,4.629,3683.9,3682.8,0.454]
[1753407434158,4.629,3683.9,3683.5,2.714802]
[1753407434476,0.4858,3683.9,3682.9,0.4885]
[1753407434684,0.4858,3683.9,3683.1,2.71510412]
[1753407434986,4.625,3683.8,3683.7,2.71466188]
[1753407435304,0.8265,3684.8,3683.7,1.48544141]
[1753407435487,4.625,3685.0,3683.8,0.93434588]
[1753407435803,0.8265,3685.3,3683.9,3.62170889]
[1753407436097,0.8265,3685.3,3683.9,0.9072]
[1753407436098,5.9214,3685.3,3683.9,0.9072]
[1753407436302,7.34062471,3685.2,3684.5,2.71407023]
[1753407436597,7.34062471,3685.2,3683.7,0.54294141]
[1753407436598,0.4669,3685.1,3683.7,0.54294141]
[1753407436778,2.71427957,3684.3,3683.3,3.14635215]
[1753407436975,4.63,3684.2,3683.3,0.4314]
[1753407437300,0.4419,3684.5,3684.1,2.71431197]
[1753407437301,4.628,3684.5,3684.1,2.71431197]
[1753407437481,4.628,3684.4,3684.1,2.71431197]
[1753407437803,4.628,3684.4,3683.9,2.71447153]
[1753407438007,4.628,3684.4,3683.7,0.9072]
[1753407438204,5.0949,3684.4,3683.7,2.71461417]
[1753407438499,0.136,3684.3,3683.8,0.136]
[1753407438888,0.6029,3684.3,3683.8,0.136]
[1753407439095,2.85023676,3684.3,3683.6,0.136]
[1753407439294,2.7143071,3684.2,3683.6,0.136]
[1753407439598,0.136,3684.1,3683.6,0.136]
[1753407439964,0.136,3684.1,3683.5,2.71474886]
[1753407440164,4.757,3684.1,3683.6,0.136]
[1753407440400,4.754,3684.1,3683.6,2.85071984]
[1753407440602,4.754,3684.1,3683.6,0.136]
[1753407440782,0.136,3684.1,3683.6,2.85069872]
[1753407440978,7.46642037,3684.1,3683.6,0.136]
[1753407441303,4.752,3684.1,3683.6,0.136]
[1753407441471,7.46639112,3684.1,3683.6,0.136]
[1753407441666,4.752,3684.1,3683.6,0.136]
[1753407441871,2.85058304,3683.9,3683.4,0.136]
[1753407442104,2.71461066,3683.8,3683.3,0.136]
[1753407442286,0.136,3683.9,3683.3,0.136]
[1753407443006,7.79255459,3683.8,3683.1,0.136]
[1753407443217,0.136,3683.7,3683.1,0.136]
[1753407443410,2.71501799,3683.3,3682.7,0.136]
[1753407443707,2.71519536,3683.0,3682.7,0.136]
[1753407443902,2.71519536,3683.0,3682.5,0.136]
[1753407444208,5.0719,3682.9,3682.5,0.136]
[1753407444404,5.0719,3682.9,3682.3,0.136]
[1753407444405,0.9088,3682.8,3682.3,0.136]
[1753407444707,2.71540161,3682.7,3682.3,0.136]
[1753407444907,4.741,3682.9,3682.3,0.136]
[1753407445075,3.18243858,3682.6,3682.3,0.136]
[1753407445408,0.136,3682.9,3682.8,2.71532529]
[1753407445702,4.607,3683.2,3682.9,2.71522977]
[1753407445905,2.71576774,3682.2,3682.1,0.001]
[1753407446105,8.13766774,3682.2,3682.1,0.001]
[1753407446304,5.4219,3682.2,3682.1,0.001]
[1753407446507,5.8898,3682.2,3682.1,0.001]
[1753407446673,1.2648,3682.2,3682.1,0.001]
[1753407447005,8.60556774,3682.2,3682.1,0.001]
[1753407447409,0.4419,3682.6,3682.1,0.001]
[1753407447610,4.622,3682.2,3682.1,0.001]
[1753407448307,7.80466774,3682.2,3682.1,0.001]
[1753407448720,9.60296774,3682.2,3682.1,0.001]
[1753407449299,4.43096774,3682.2,3682.1,0.001]
[1753407449502,9.04796774,3682.2,3682.1,0.001]
[1753407450083,9.04696774,3682.2,3682.1,0.001]
[1753407451012,9.59696774,3682.2,3682.1,0.001]
[1753407451203,4.98096774,3682.2,3682.1,0.001]
[1753407451516,8.60106774,3682.2,3682.1,0.001]
[1753407451818,8.13416774,3682.2,3682.1,0.001]
[1753407452013,3.52216774,3682.2,3682.1,0.001]
[1753407452220,5.4164,3682.2,3682.1,0.001]
[1753407452524,0.7972,3682.9,3682.1,0.001]
[1753407452823,7.32532529,3682.8,3682.1,0.001]
[1753407453022,4.607,3682.7,3682.1,0.001]
[1753407453319,2.71576774,3682.2,3682.1,0.001]
[1753407453517,7.32276774,3682.2,3682.1,0.001]
[1753407453687,8.23156774,3682.2,3682.1,0.001]
[1753407454220,0.7972,3682.4,3682.1,0.001]
[1753407454518,7.79366774,3682.2,3682.1,0.001]
[1753407455323,8.23556774,3682.2,3682.1,0.001]
[1753407455510,8.92156774,3682.2,3682.1,0.001]
[1753407456414,8.91656774,3682.2,3682.1,0.001]
[1753407456614,3.76056774,3682.2,3682.1,0.001]
[1753407456813,2.85176774,3682.2,3682.1,0.001]
[1753407457042,7.45576774,3682.2,3682.1,0.001]
[1753407457334,0.136,3682.2,3682.1,0.001]
[1753407457499,4.741,3682.2,3682.1,0.001]
[1753407458111,0.136,3682.2,3682.1,0.001]
[1753407458313,0.136,3682.8,3682.1,1.0442]
[1753407458513,0.8006,3683.9,3682.2,1.73325767]
[1753407458717,4.603,3683.8,3682.7,0.136]
[1753407458942,0.136,3683.6,3683.1,0.136]
[1753407459145,3.51512269,3683.9,3683.2,0.4314]
[1753407459146,4.739,3683.7,3683.2,0.4314]
[1753407459317,0.002,3684.0,3683.3,0.4758]
[1753407459499,4.601,3683.9,3683.6,0.136]
[1753407459706,4.603,3684.0,3683.8,0.136]
[1753407459943,0.002,3684.0,3683.8,2.85054557]
[1753407460143,0.002,3684.0,3683.9,3.64885964]
[1753407460344,0.002,3684.0,3683.9,4.46555964]
[1753407460513,0.138,3685.4,3683.9,1.7239]
[1753407460714,2.71369939,3685.1,3684.0,0.9072]
[1753407461015,0.136,3684.9,3684.4,0.136]
[1753407461216,0.136,3684.9,3682.5,2.71551559]
[1753407461217,0.8203,3684.8,3684.1,0.136]
[1753407461429,2.8500858,3684.5,3683.7,0.9072]
[1753407461743,2.71396019,3684.7,3683.0,0.136]
[1753407461744,0.136,3683.8,3683.0,0.136]
[1753407461907,7.32266188,3683.7,3683.0,0.136]
[1753407462107,0.136,3683.5,3683.0,0.136]
[1753407462418,2.85081142,3683.5,3683.0,1.0432]
[1753407462635,0.136,3683.5,3683.0,0.136]
[1753407462945,2.85083479,3683.5,3683.0,0.136]
[1753407463446,0.55,3683.4,3683.0,0.136]
[1753407463749,3.26492798,3683.4,3683.0,0.136]
[1753407463906,0.55,3683.4,3683.0,0.136]
[1753407465108,0.136,3683.5,3683.1,0.9072]
[1753407465439,2.71452327,3683.9,3683.3,0.136]
[1753407465641,2.71452327,3683.9,3682.8,0.7559]
[1753407465642,2.71471857,3683.7,3682.8,0.7559]
[1753407465843,0.55,3683.6,3683.2,0.136]
[1753407466142,0.55,3683.3,3683.2,0.136]
[1753407466508,0.55,3683.3,3682.8,0.7559]
[1753407466708,0.55,3683.3,3683.0,0.136]
[1753407467041,0.55,3683.2,3683.0,0.136]
[1753407467451,0.55,3683.4,3683.0,0.136]
[1753407467756,3.26490096,3683.4,3683.0,0.136]
[1753407468277,0.55,3683.4,3683.0,0.136]
[1753407468848,3.26489178,3683.4,3683.0,0.136]
[1753407469647,0.55,3683.1,3682.2,0.8206]
[1753407469857,0.55,3682.5,3682.2,0.136]
[1753407470333,0.55,3682.6,3682.2,0.136]
[1753407470708,0.55,3682.4,3682.2,0.136]
[1753407470920,2.71572541,3682.3,3682.1,0.137]
[1753407471149,2.71555452,3682.5,3682.1,0.137]
[1753407471150,0.55,3682.2,3682.1,0.137]
[1753407471360,0.55,3682.4,3682.1,0.137]
[1753407471972,0.55,3682.4,3682.1,0.001]
[1753407471973,0.55,3682.2,3682.1,0.001]
[1753407472199,3.40176774,3682.2,3682.1,0.001]
[1753407472546,3.89036774,3682.2,3682.1,0.001]
[1753407473668,4.33646774,3682.2,3682.1,0.001]
[1753407474260,8.90446774,3682.2,3682.1,0.001]
[1753407476986,3.2663579,3681.4,3679.7,0.7887]
[1753407477146,7.8393579,3681.4,3680.3,0.4547]
[1753407477349,7.8393579,3681.4,3680.6,0.4431]
[1753407477591,8.7740579,3681.4,3680.6,0.001]
[1753407479476,8.3249579,3681.4,3680.6,0.001]
[1753407480259,2.71610494,3681.8,3680.6,2.71793071]
[1753407480454,2.71561055,3682.5,3681.3,0.8978]
[1753407480698,4.563,3682.4,3681.5,2.71623378]
[1753407480996,7.27862212,3682.4,3681.6,0.8968]
[1753407481199,7.27863428,3682.4,3681.6,0.8968]
[1753407481503,1.0386,3682.3,3681.3,0.001]
[1753407481715,3.2663579,3681.4,3681.3,0.001]
[1753407481859,7.8273579,3681.4,3681.3,0.001]
[1753407482061,0.55,3680.8,3680.3,1.6815]
[1753407482407,5.112,3680.7,3680.3,0.7847]
[1753407482773,5.112,3680.7,3679.8,0.8968]
[1753407482980,5.6006,3680.7,3679.8,1.6815]
[1753407483176,8.3174745,3680.7,3679.8,1.6815]
[1753407483774,5.109,3680.7,3680.2,0.8968]
[1753407483974,5.109,3680.7,3680.6,3.61474832]
[1753407483975,0.55,3680.7,3680.6,3.61474832]
[1753407484183,2.71622199,3681.6,3680.6,2.31568494]
[1753407484506,4.559,3681.5,3680.8,2.71678031]
[1753407484701,7.27528817,3681.5,3680.7,2.71685567]
[1753407485065,0.55,3681.3,3680.7,2.71686667]
[1753407485290,0.55,3681.3,3680.6,4.39942371]
[1753407485828,4.554,3681.2,3680.6,1.2278]
[1753407486009,0.55,3681.1,3680.6,1.2278]
[1753407486214,0.55,3681.1,3680.6,0.001]
[1753407486868,0.55,3681.6,3680.7,0.8968]
[1753407487119,0.55,3681.2,3680.8,2.85280069]
[1753407487277,0.55,3681.0,3680.8,3.74960069]
[1753407487492,0.55,3681.0,3680.9,2.71672688]
[1753407487713,0.55,3681.0,3680.9,3.15882688]
[1753407488222,0.55,3681.0,3680.9,3.61352688]
[1753407488942,0.55,3681.3,3681.0,2.71664039]
[1753407489092,0.7988,3682.3,3681.0,2.71664039]
[1753407489093,4.549,3681.8,3681.1,2.71657928]
[1753407489271,4.679,3681.8,3681.3,2.71637917]
[1753407489586,0.55,3681.7,3681.2,0.136]
[1753407489787,0.55,3681.6,3681.0,0.7725]
[1753407489974,0.686,3681.6,3681.0,0.9085]
[1753407490170,0.55,3681.4,3681.0,0.9085]
[1753407490428,0.55,3681.4,3681.1,3.61337336]
[1753407490715,0.55,3681.5,3681.2,3.61328014]
[1753407490940,0.55,3681.5,3681.3,0.8968]
[1753407491139,0.136,3681.6,3681.3,0.8968]
[1753407491140,0.4886,3682.7,3681.5,2.71628412]
[1753407491348,4.674,3682.3,3681.7,2.71612283]
[1753407491494,4.544,3682.4,3681.8,0.8968]
[1753407491692,0.55,3682.3,3682.0,0.136]
[1753407492009,2.85185763,3682.1,3681.3,2.7164316]
[1753407492208,0.55,3682.0,3681.5,0.136]
[1753407492392,0.55,3682.0,3681.5,0.5781]
[1753407492597,0.55,3682.0,3681.6,0.8968]
[1753407493234,0.136,3681.8,3681.3,0.136]
[1753407493542,0.136,3681.6,3680.9,0.136]
[1753407493757,0.55,3681.5,3680.9,0.136]
[1753407493897,0.55,3681.3,3680.9,0.136]
[1753407494096,0.55,3681.3,3680.7,0.4547]
[1753407494330,0.55,3681.3,3680.8,0.136]
[1753407494695,0.55,3681.1,3680.6,0.001]
[1753407494899,0.55,3681.1,3680.7,0.136]
[1753407495101,2.71686893,3680.8,3680.6,0.001]
[1753407495328,0.136,3680.7,3680.6,0.001]
[1753407495531,0.686,3680.7,3680.6,0.001]
[1753407495695,6.9517,3680.7,3680.6,0.001]
[1753407495894,9.6685745,3680.7,3680.6,0.001]
[1753407497602,5.1315745,3680.7,3680.6,0.001]
[1753407497814,9.1887745,3680.7,3680.6,0.001]
[1753407498100,0.686,3680.7,3680.6,0.001]
[1753407498308,3.26697036,3680.6,3680.2,0.5023]
[1753407498518,0.55,3680.6,3679.9,0.136]
[1753407498722,0.55,3680.3,3679.9,0.136]
[1753407498923,0.55,3680.3,3679.9,0.6059]
[1753407499231,0.55,3680.3,3679.9,0.136]
[1753407499412,0.55,3680.3,3679.8,0.001]
[1753407499609,0.55,3679.9,3679.8,0.001]
[1753407501907,0.8026,3681.0,3679.9,0.5023]
[1753407502153,7.5533,3681.6,3680.3,0.136]
[1753407502341,0.136,3681.2,3680.7,2.71683551]
[1753407502637,0.55,3681.1,3680.8,3.63879963]
[1753407502837,0.55,3681.1,3680.9,0.4699]
[1753407503137,4.522,3681.5,3680.9,0.4699]
[1753407503138,0.136,3681.5,3681.0,3.77459077]
[1753407503297,0.136,3681.5,3681.0,2.85259077]
[1753407503515,0.136,3681.5,3681.1,0.922]
[1753407503516,0.55,3681.4,3681.1,0.922]
[1753407503915,0.136,3681.5,3681.1,0.922]
[1753407504154,0.136,3681.5,3680.9,0.5023]
[1753407504155,4.523,3681.6,3680.9,0.5023]
[1753407504359,0.55,3681.2,3680.9,0.5023]
[1753407504853,0.55,3681.2,3680.9,0.9722]
[1753407505476,0.55,3681.2,3681.0,3.18653839]
[1753407505772,0.55,3681.2,3681.0,0.4699]
[1753407505920,1.0353,3681.2,3680.3,4.9869]
[1753407506126,0.686,3681.1,3680.6,0.136]
[1753407507464,13.7441487,3690.2,3681.2,2.71647951]
[1753407507465,0.55,3681.9,3681.2,2.71647951]
[1753407507628,0.55,3681.4,3681.2,0.4699]
[1753407507828,0.55,3681.4,3681.3,0.922]
[1753407508026,1.3072,3682.2,3681.4,2.7163579]
[1753407508334,0.136,3682.0,3681.5,0.4699]
[1753407509163,0.136,3682.0,3681.5,3.16837069]
[1753407509164,0.55,3681.9,3681.5,3.16837069]
[1753407509350,0.55,3681.9,3681.6,0.4699]
[1753407510249,0.55,3681.7,3680.9,3.16877933]
[1753407510566,0.55,3681.5,3681.0,4.643]
[1753407510736,0.55,3681.5,3681.0,0.136]
[1753407510924,0.55,3681.5,3681.0,0.6059]
[1753407511120,0.55,3681.5,3681.0,3.3225394]
[1753407511569,3.20164584,3681.5,3681.0,0.136]
[1753407511754,0.55,3681.4,3681.0,0.136]
[1753407512064,0.4853,3681.3,3680.5,0.4521]
[1753407512230,0.55,3681.0,3680.3,0.5023]
[1753407512430,0.55,3681.0,3680.2,0.6059]
[1753407512632,0.55,3680.6,3680.5,2.71702214]
[1753407512831,0.55,3681.1,3680.6,2.71693722]
[1753407513054,0.55,3681.1,3680.7,0.922]
[1753407513237,0.55,3681.1,3680.6,2.71693722]
[1753407513565,0.55,3681.1,3680.8,0.922]
[1753407513736,0.55,3681.1,3680.5,0.136]
[1753407513933,0.55,3680.9,3680.3,3.16921088]
[1753407514128,0.55,3680.9,3680.4,0.6059]
[1753407514368,0.55,3680.9,3680.5,3.63899994]
[1753407514860,0.55,3680.9,3680.5,0.922]
[1753407515062,0.55,3680.9,3680.4,0.136]
[1753407515284,0.55,3680.9,3680.4,2.8530327]
[1753407515569,0.55,3680.9,3680.8,2.71680069]
[1753407515729,0.55,3681.3,3680.8,4.27710069]
[1753407515956,0.55,3681.1,3680.4,0.5023]
[1753407516128,0.55,3680.7,3679.8,0.001]
[1753407516348,0.55,3680.2,3679.8,0.137]
[1753407516666,0.55,3680.2,3679.8,0.6069]
[1753407517366,0.55,3680.2,3679.8,1.059]
[1753407517557,0.55,3680.2,3680.0,2.71733867]
[1753407517758,0.55,3680.2,3680.0,3.63933867]
[1753407517930,0.55,3680.2,3680.0,0.922]
[1753407518369,0.55,3680.2,3679.8,0.137]
[1753407518669,0.55,3680.2,3679.9,0.4699]
[1753407519056,0.55,3680.2,3679.8,0.137]
[1753407520445,0.55,3680.2,3679.8,0.001]
[1753407520651,0.55,3680.0,3679.8,0.001]
[1753407520847,0.55,3680.0,3679.5,0.001]
[1753407521536,0.55,3679.6,3679.5,0.001]
[1753407521729,0.686,3679.6,3679.5,0.001]
[1753407522081,3.8889867,3679.6,3679.5,0.001]
[1753407522582,1.1713,3679.6,3679.5,0.001]
[1753407522876,3.88900826,3679.6,3679.2,0.001]
[1753407523082,0.55,3679.4,3679.2,0.001]
[1753407523284,0.686,3679.4,3679.2,0.001]
[1753407523521,3.88913442,3679.4,3679.2,0.001]
[1753407523631,3.26747331,3679.9,3679.2,0.001]
[1753407523831,0.55,3679.4,3679.2,0.001]
[1753407524873,0.55,3679.5,3679.3,0.923]
[1753407525073,0.55,3679.5,3679.3,0.001]
[1753407525233,0.686,3679.4,3679.3,0.001]
[1753407525750,0.55,3679.4,3679.3,0.001]
[1753407527162,3.26790829,3679.3,3679.2,0.001]
[1753407527333,4.16900829,3679.3,3679.2,0.001]
[1753407527533,4.97720829,3679.3,3679.2,0.001]
[1753407528947,4.97720829,3679.3,3678.5,0.001]
[1753407528948,3.26842548,3678.6,3678.5,0.001]
[1753407529275,8.49592548,3678.6,3678.5,0.001]
[1753407529487,9.39702548,3678.6,3678.5,0.001]
[1753407530768,0.55,3677.7,3677.3,0.001]
[1753407530974,0.55,3677.5,3677.3,0.001]
[1753407533547,0.55,3677.6,3677.3,0.001]